Cogmind - Beta 12 @@@ ROGUE MODE // 2024.02.13 @ 02:58:55 Player: Krieg Result: Destroyed by G-50 Soldier with Heavy Laser Performance ------------- Evolutions (5) 2500 Regions Visited (14) 2800 Robots Destroyed (112) 560 Value Destroyed (7090) 7090 Prototype IDs (5) 100 Alien Tech Used (0) 0 Bonus (5545) 5545 TOTAL SCORE: 18595 Bonus ------- High Alert Combat Kills 1002 Follower Combat Kills 589 Entered Garrisons 1000 Used RIF Installer 3000 Friendly Fire -46 Cogmind --------- Core Integrity 0/1000 Matter 265/300 Energy 100/100 System Corruption 0% Temperature Cool (9) Movement Core (50) Location -5/Garrison Parts ------- > --- POWER (2) -------- (None) > --- PROPULSION (6) --- (None) > --- UTILITY (7) ------ Relay Coupler [NC] (33) Relay Coupler [Duelist] (39) Relay Coupler [Sentry] (25) > --- WEAPON (2) ------- Katana > --- INVENTORY (5) ---- Relay Coupler [Sentry] (27) Peak State ------------ > --- POWER ------------ Hybrid Deuterium Engine > --- PROPULSION ------- Improved Heavy Treads Improved Heavy Treads Flexi-carbon Leg > --- UTILITY ---------- Huge Storage Unit Improved Medium Armor Plating Relay Coupler [NC] Relay Coupler [Grunt] Relay Coupler [Brawler] Relay Coupler [Hunter] > --- WEAPON ----------- Remote Datajack Heavy Pick > --- INVENTORY -------- Improved Deuterium Engine Flexi-carbon Leg Flexi-carbon Leg Improved Heat Sink Hardened Light Armor Plating Relay Coupler [NC] Relay Coupler [NC] Relay Coupler [Grunt] Relay Coupler [Duelist] Relay Coupler [Duelist] Relay Coupler [Duelist] Relay Coupler [Sentry] Relay Coupler [Sentry] Relay Coupler [Sentry] Relay Coupler [Sentry] Relay Coupler [Sentry] Relay Coupler [Demolisher] Relay Coupler [Hunter] Improved System Restoration Module Hypervelocity Gauss Rifle Hypervelocity Gauss Rifle Hypervelocity Gauss Rifle Heavy Machine Gun Heavy Rocket Launcher Remote Datajack [Rating: 72] Favorites ----------- Power Hybrid Deuterium Engine Engine Hybrid Deuterium Engine Power Core Fission Core Propulsion Carbon-fiber Leg Treads Improved Heavy Treads Leg Carbon-fiber Leg Wheel Armored Wheel Hover Unit Gyrokinetic Inverter Flight Unit VTOL Module Utility Small Storage Unit Device Improved Heat Sink Storage Small Storage Unit Processor Improved Melee Analysis Suite Hackware Relay Coupler [Grunt] Protection Layered Light Armor Plating Weapon Assault Rifle Energy Gun Gatling Laser Ballistic Gun Assault Rifle Ballistic Cannon Hypervelocity Gauss Cannon Launcher Advanced EMP Blaster Special Weapon Remote Datajack Impact Weapon Impact Mace Slashing Weapon Katana Piercing Weapon Heavy Pick Special Melee Weapon Improved Datajack Build | -11 -10 -10 -10 -9 -8 -8 -8 -8 -7 -7 -6 -6 -5 -5 ------- Run | Jun Mat Min Exi Min Mat Gar Mat Gar Fac Gar Fac Gar Fac Gar Slots Evolved 10 | . . . . . 4 . . . 2 . 2 . 2 . Power 1 | . . . . . . . . . . . 1 . . . Propulsion 4 | . . . . . 2 . . . . . 1 . 1 . Utility 5 | . . . . . 2 . . . 2 . . . 1 . Weapon . | . . . . . . . . . . . . . . . Parts Attached 203 | 6 2 . . 5 12 32 2 5 43 29 26 6 17 18 Power 23 | 1 . . . 2 . 2 1 2 7 1 4 . 1 2 Engine 17 | 1 . . . 1 . 2 1 2 4 1 4 . . 1 Core 6 | . . . . 1 . . . . 3 . . . 1 1 Reactor . | . . . . . . . . . . . . . . . Propulsion 59 | 2 1 . . 3 5 10 1 1 13 6 3 . 7 7 Treads 12 | . . . . . 1 3 . . 4 4 . . . . Leg 25 | . . . . . . 5 1 1 8 2 3 . . 5 Wheel 12 | 2 1 . . 3 4 2 . . . . . . . . Hover 3 | . . . . . . . . . . . . . 3 . Flight 7 | . . . . . . . . . 1 . . . 4 2 Utility 64 | 1 1 . . . 4 10 . 1 15 11 12 3 4 2 Device 20 | . 1 . . . 2 1 . 1 3 5 2 . 4 1 Storage 4 | 1 . . . . . . . . 1 1 1 . . . Processor 4 | . . . . . . . . . 2 2 . . . . Hackware 18 | . . . . . 1 3 . . 2 2 6 3 . 1 Protection 18 | . . . . . 1 6 . . 7 1 3 . . . Artifact . | . . . . . . . . . . . . . . . Weapon 57 | 2 . . . . 3 10 . 1 8 11 7 3 5 7 Energy Gun 6 | . . . . . . 2 . . 1 3 . . . . Energy Cannon . | . . . . . . . . . . . . . . . Ballistic Gun 19 | 2 . . . . 2 3 . . 1 3 3 1 2 2 Ballistic Cannon 3 | . . . . . . 1 . . 1 1 . . . . Launcher 5 | . . . . . 1 3 . . . 1 . . . . Special Weapon 12 | . . . . . . 1 . 1 2 3 3 2 . . Impact Weapon 5 | . . . . . . . . . 3 . . . 1 1 Slashing Weapon 3 | . . . . . . . . . . . . . 1 2 Piercing Weapon 1 | . . . . . . . . . . . 1 . . . Special Melee Weapon 3 | . . . . . . . . . . . . . 1 2 Unidentified Prototypes 5 | . . . . . 1 . . . 3 1 . . . . Parts Lost 67 | . 1 . . . . 16 . 6 13 9 7 1 . 14 Power 8 | . . . . . . 2 . . 2 1 1 . . 2 Propulsion 25 | . 1 . . . . 6 . 3 3 3 4 . . 5 Utility 20 | . . . . . . 3 . 2 6 3 1 . . 5 Weapon 14 | . . . . . . 5 . 1 2 2 1 1 . 2 Highest Loss Streak 6 | . 1 . . . . 4 . 3 5 5 3 1 . 6 To Critical Strikes 4 | . . . . . . . . 1 2 . 1 . . . Average Slot Usage (%) 79 | . 86 100 100 100 96 87 99 91 70 66 68 37 68 69 Engine 7 | . 14 14 14 11 . 6 9 9 4 6 9 . . 2 Treads 5 | . . . . . 9 4 . . 3 14 9 . . . Leg 9 | . . . . . . 15 35 31 16 1 9 . . 5 Wheel 7 | . 25 28 28 28 27 12 . . . . . . . . Flight 1 | . . . . . . . . . 2 . . . 14 11 Device 7 | . 3 14 14 14 16 . 9 8 1 13 . . 4 3 Storage 7 | . 14 14 14 14 9 9 9 9 4 7 5 . . . Processor 1 | . . . . . . . . . 5 2 . . . . Hackware 7 | . . . . . 5 5 9 6 5 3 20 26 23 24 Protection 5 | . . . . . 1 15 9 9 8 . 2 6 5 . Energy Gun 1 | . . . . . . 2 . . . 5 . . . . Ballistic Gun 7 | . 28 28 28 28 18 4 . . . 3 2 1 . . Ballistic Cannon 1 | . . . . . . 2 9 8 3 . . . . . Special Weapon 2 | . . . . . . 2 9 8 3 1 4 3 . . Naked Turns 64 | . . . . . . . . . 61 . 3 . . . Heaviest Build 169 | 14 15 15 15 20 24 56 34 33 33 169 166 7 13 33 Greatest Support 162 | 26 26 26 26 26 36 55 55 55 84 162 150 3 33 85 Greatest Overweight (x) 7 | 1 . . . 1 1 7 . 1 4 2 5 2 1 1 Average Overweight (x) . | . . . . . . . . . . . . . . . Largest Inventory Capacity 30 | 8 8 8 8 8 8 8 8 8 8 30 30 5 5 5 Average Capacity 13 | 7 8 8 8 8 8 8 8 8 7 27 27 5 5 5 Most Carried 29 | 7 8 8 8 8 8 8 8 8 8 22 29 5 5 5 Average Carried 8 | 3 7 8 7 7 7 6 7 7 4 8 23 3 3 3 Final Capacity 30 | 8 8 8 8 8 8 8 8 8 8 30 5 5 5 5 Final Carried 22 | 7 8 8 8 8 8 7 8 8 7 22 5 4 5 1 Class Distribution -------------------- 40% | Mutant 31% | Scavenger-Mutant 18% | Bothacker-Mutant 6% | Hauler-Mutant Dominant Class ---------------- Mutant | -10/Materials Mutant | -10/Mines Mutant | -10/Exiles Mutant | -9/Mines Mutant | -8/Materials Scavenger-Mutant | -8/Garrison Scavenger-Mutant | -8/Materials Scavenger-Mutant | -8/Garrison Mutant | -7/Factory Scavenger-Mutant | -7/Garrison Bothacker-Mutant | -6/Factory Mutant | -6/Garrison Sprinter | -5/Factory Bothacker-Sprinter | -5/Garrison Resources | -11 -10 -10 -10 -9 -8 -8 -8 -8 -7 -7 -6 -6 -5 -5 ----------- Run | Jun Mat Min Exi Min Mat Gar Mat Gar Fac Gar Fac Gar Fac Gar Matter Collected 5029 | 301 63 18 155 164 146 982 300 486 579 932 344 . 277 282 Remotely . | . . . . . . . . . . . . . . . Salvage Created 5050 | 133 87 . . 138 207 977 174 329 934 1570 207 . 87 207 Parts 206 | 11 6 . . 9 10 52 15 16 28 40 12 . 5 2 Haulers Intercepted 2 | . . . . . . . 1 . 1 . . . . . Recyclers Shooed 1 | . . . . 1 . . . . . . . . . . Parts Field Recycled . | . . . . . . . . . . . . . . . Retrieved Matter . | . . . . . . . . . . . . . . . Parts Self-Destructed . | . . . . . . . . . . . . . . . Prevented . | . . . . . . . . . . . . . . . Kills | -11 -10 -10 -10 -9 -8 -8 -8 -8 -7 -7 -6 -6 -5 -5 ------- Run | Jun Mat Min Exi Min Mat Gar Mat Gar Fac Gar Fac Gar Fac Gar Combat Hostiles Destroyed 101 | . 2 . . 6 3 26 4 7 17 23 6 . 3 4 Melee 11 | . . . . . . . . . 8 . 2 . . 1 Guns 57 | . 2 . . 6 3 15 . . 4 20 4 . 3 . Cannons 15 | . . . . . . 4 4 7 . . . . . . AOE 9 | . . . . . . 7 . . . 2 . . . . Classes Destroyed 17 | 2 1 . . 2 3 5 1 1 1 . 1 . . . Worker 1 | . . . . . . . . . 1 . . . . . Tunneler 4 | 3 . . . 1 . . . . . . . . . . Hauler 2 | . . . . . . . 1 . 1 . . . . . Recycler 3 | 1 . . . . . . . . 2 . . . . . Watcher 3 | . . . . . 1 . 1 . 1 . . . . . Swarmer 19 | . . . . 3 . 4 2 . 3 . 4 . 3 . Cutter 2 | . . . . . . . . 2 . . . . . . Grunt 42 | . 2 . . 1 1 10 2 4 7 11 . . . 4 Brawler 4 | . . . . . . 2 . . 2 . . . . . Duelist 4 | . . . . . . 1 . . 2 1 . . . . Protector 1 | . . . . . . 1 . . . . . . . . Sentry 12 | . . . . . 1 4 . 1 1 5 . . . . Demolisher 1 | . . . . . . 1 . . . . . . . . Specialist 2 | . . . . . . . . . . . 2 . . . Hunter 4 | . . . . . 1 . . . 1 2 . . . . Programmer 8 | . . . . . . 3 . . 1 4 . . . . Assembled 2 | . . . . 2 . . . . . . . . . . Best Kill Streak 6 | 4 1 . . 3 2 4 2 2 4 6 3 . 3 3 Combat Bots Only 6 | . 1 . . 3 1 4 2 2 4 6 3 . 3 3 Max Kills in Single Turn 2 | 2 1 . . 2 1 2 1 1 1 2 1 . 1 1 Gunslinging 1 | . . . . 1 . . . . . 1 . . . . Exploded 2 | . . . . . . 2 . . . 2 . . . . Melee 1 | . . . . . . . . . 1 . 1 . . 1 Uniques/NPCs Destroyed . | . . . . . . . . . . . . . . . Combat | -11 -10 -10 -10 -9 -8 -8 -8 -8 -7 -7 -6 -6 -5 -5 -------- Run | Jun Mat Min Exi Min Mat Gar Mat Gar Fac Gar Fac Gar Fac Gar Damage Taken 13553 | . 283 . . 181 155 2153 168 859 2302 3289 1893 59 263 1948 Core 2826 | . 81 . . 56 16 206 31 172 361 325 542 32 93 911 Absorbed by Shields 136 | . . . . . . . . . . 98 . . . 38 Reduced by Siege Mode 288 | . . . . . . . . . . 288 . . . . Redirected to Shielding 140 | . . . . . . 88 . . . . 16 7 19 10 Core Remaining (%) 40 | 100 . . . 45 . . . 22 . 2 . 32 . . Volleys Fired 520 | 8 19 . . 19 12 115 35 58 20 162 41 17 7 7 Largest 2 | 2 2 . . 2 2 2 1 1 1 2 1 1 1 1 Hottest 145 | 40 40 . . 40 48 102 61 61 80 145 33 33 33 33 Shots Fired 686 | 16 38 . . 38 24 164 36 60 20 218 41 17 7 7 Gun 514 | 16 38 . . 38 24 119 . . 15 213 25 12 7 7 Cannon 116 | . . . . . . 20 36 59 . 1 . . . . Launcher 24 | . . . . . . 22 . . . 2 . . . . Special 32 | . . . . . . 3 . 1 5 2 16 5 . . Kinetic 478 | 16 38 . . 38 24 122 36 59 10 84 25 12 7 7 Thermal 152 | . . . . . . 17 . . 5 130 . . . . Explosive 9 | . . . . . . 7 . . . 2 . . . . Electromagnetic 15 | . . . . . . 15 . . . . . . . . Robot Hit Streak 76 | 6 3 . . 6 11 7 4 3 7 76 12 3 5 . Robot Miss Streak 7 | 2 3 . . 3 2 6 7 6 7 5 5 1 2 7 Penetration Max 1 | . . . . . . 1 1 1 . . . . 1 . Secondary Targets 11 | . . . . 3 . 4 . . . 4 . . . . Max Gunslinging Chain 1 | . . . . 1 . 1 . . . 1 . . . . Shots Hit Robots 477 | 10 18 . . 22 15 66 16 29 59 177 36 4 6 19 Core Hits 302 | 5 6 . . 11 7 53 9 13 23 163 6 . 3 3 Critical Kills 20 | . . . . . . 5 3 8 1 . . . 3 . Critical Parts Destroyed 35 | . . . . . . 3 8 9 7 1 2 . 1 4 Critical Strikes 60 | . . . . . . 8 11 17 9 2 4 . 4 5 Burn 1 | . . . . . . . . . . 1 . . . . Destroy 43 | . . . . . . 8 11 17 . 1 2 . 4 . Smash 13 | . . . . . . . . . 9 . . . . 4 Sever 1 | . . . . . . . . . . . . . . 1 Impale 2 | . . . . . . . . . . . 2 . . . Melee Attacks 97 | . . . . . . . . . 56 . 10 . 3 28 Impact 70 | . . . . . . . . . 56 . . . 1 13 Slashing 13 | . . . . . . . . . . . . . 1 12 Piercing 10 | . . . . . . . . . . . 10 . . . Sneak Attacks 7 | . . . . . . . . . 5 . . . 1 1 Combat Hostiles 1 | . . . . . . . . . . . . . . 1 Follow-up Attacks 4 | . . . . . . . . . . . . . . 4 Damage Inflicted 11958 | 142 238 . . 283 201 2020 320 433 2446 4542 517 . 40 776 Guns 6594 | 142 238 . . 283 201 896 . . 240 4286 268 . 40 . Cannons 902 | . . . . . . 149 320 433 . . . . . . Explosions 1231 | . . . . . . 975 . . . 256 . . . . Melee 3231 | . . . . . . . . . 2206 . 249 . . 776 Ramming . | . . . . . . . . . . . . . . . Kinetic 3997 | 142 238 . . 283 201 924 320 433 133 1015 268 . 40 . Thermal 3536 | . . . . . . 158 . . 107 3271 . . . . Explosive 507 | . . . . . . 251 . . . 256 . . . . Electromagnetic 687 | . . . . . . 687 . . . . . . . . Impact 2797 | . . . . . . . . . 2206 . . . . 591 Slashing 185 | . . . . . . . . . . . . . . 185 Piercing 249 | . . . . . . . . . . . 249 . . . Highest Corruption 18 | . . . . . . 4 4 4 14 18 3 3 . . Average Corruption 8 | . . . . . . 3 4 4 9 15 1 3 . . Corruption Purged . | . . . . . . . . . . . . . . . Corruption Blocked 3 | . . . . . . . . . . . 3 . . . Effects 212 | . . . . . . 29 10 26 5 132 3 7 . . Message Errors 46 | . . . . . . 7 2 7 2 24 1 3 . . Matter Fused 53 | . . . . . . 9 2 5 . 36 . 1 . . Heat Flow Errors 20 | . . . . . . 4 1 3 1 9 1 1 . . Energy Discharges 17 | . . . . . . . 1 3 . 11 1 1 . . Parts Rejected 3 | . . . . . . 1 . . 1 1 . . . . Parts Fused 2 | . . . . . . . . 1 . 1 . . . . Data Loss (minor) 22 | . . . . . . 3 2 1 1 14 . 1 . . Data Loss (major) 23 | . . . . . . 3 1 4 . 15 . . . . Misfires 19 | . . . . . . 2 1 2 . 14 . . . . Alerts 1 | . . . . . . . . . . 1 . . . . Weapon Failures 6 | . . . . . . . . . . 6 . . . . Overload Shots . | . . . . . . . . . . . . . . . Overflow Damage 869 | . . . . . . 38 . . 687 . . . . 144 Projectiles . | . . . . . . . . . . . . . . . Explosions 38 | . . . . . . 38 . . . . . . . . Melee 831 | . . . . . . . . . 687 . . . . 144 Knockbacks 23 | . . . . . . 1 4 6 8 . . . . 4 Impact 12 | . . . . . . . . . 8 . . . . 4 Kinetic 11 | . . . . . . 1 4 6 . . . . . . Secondary . | . . . . . . . . . . . . . . . Self-Inflicted Damage 275 | . . . . . . 154 . . . 121 . . . . Shots 6 | . . . . . . 4 . . . 2 . . . . Rammed . | . . . . . . . . . . . . . . . Targets Rammed . | . . . . . . . . . . . . . . . Kicked . | . . . . . . . . . . . . . . . Crushed . | . . . . . . . . . . . . . . . Highest Temperature 422 | . 2 . . . 2 302 169 422 232 363 152 118 . 17 Average Temperature 89 | . 2 . . . 2 78 96 110 63 89 66 62 . 10 Received Heat Transfer 3953 | . 159 . . 66 63 549 72 243 489 1200 444 27 27 614 Effects 6 | . . . . . . 1 . 4 . 1 . . . . Shutdowns 2 | . . . . . . . . 2 . . . . . . Energy Bleed 2 | . . . . . . 1 . . . 1 . . . . Damage (minor) 1 | . . . . . . . . 1 . . . . . . Damage (major) 1 | . . . . . . . . 1 . . . . . . Siege Activations 5 | . . . . . . . . . . 5 . . . . Total Turns 99 | . . . . . . . . . . 99 . . . . Longest Duration 36 | . . . . . . . . . . 36 . . . . Robots Corrupted . | . . . . . . . . . . . . . . . Combat Hostiles . | . . . . . . . . . . . . . . . Parts Fried 19 | . . . . . . 5 . . 11 . . . . 3 Impact Corruptions 23 | . . . . . . . . . 18 . . . . 5 Robots Melted 4 | . . . . . . . . . . 4 . . . . Combat Hostiles 1 | . . . . . . . . . . 1 . . . . Parts Melted 12 | . . . . . . . . . . 12 . . . . Heat Transferred 7520 | . . . . . . 314 . . 250 6956 . . . . Parts Sabotaged . | . . . . . . . . . . . . . . . Parts Stolen . | . . . . . . . . . . . . . . . Parts Stripped . | . . . . . . . . . . . . . . . Power Chain Reactions 1 | . . . . . . 1 . . . . . . . . Missiles Intercepted . | . . . . . . . . . . . . . . . Alert | -11 -10 -10 -10 -9 -8 -8 -8 -8 -7 -7 -6 -6 -5 -5 ------- Run | Jun Mat Min Exi Min Mat Gar Mat Gar Fac Gar Fac Gar Fac Gar Peak Influence 2027 | 20 79 30 . 85 177 1526 861 706 459 2027 1131 557 512 509 Initial 1064 | . 13 30 . . . 116 743 296 354 208 1064 447 291 287 Average 625 | 4 44 30 . 50 59 851 665 468 296 952 928 492 418 411 Maximum Alert Level 5 | . . . . . . 4 3 3 2 5 4 2 2 2 Low Security (%) 15 | 100 100 100 . 100 100 3 . . 10 . . . . . Level 1 22 | . . . . . . 8 . 37 73 18 . . 40 38 Level 2 22 | . . . . . . 17 55 61 15 17 4 100 59 61 Level 3 27 | . . . . . . 52 44 1 . 30 92 . . . Level 4 8 | . . . . . . 18 . . . 18 2 . . . Level 5 3 | . . . . . . . . . . 15 . . . . High Security . | . . . . . . . . . . . . . . . Max Security . | . . . . . . . . . . . . . . . Squads Dispatched 20 | . 1 . . . 1 . 1 . 8 . 6 . 3 . Investigation 4 | . . . . . . . . . 1 . . . 3 . Extermination 2 | . . . . . . . . . 1 . 1 . . . Reinforcement 7 | . 1 . . . 1 . 1 . 2 . 2 . . . Assault 2 | . . . . . . . . . 1 . 1 . . . Garrison 5 | . . . . . . . . . 3 . 2 . . . Intercept . | . . . . . . . . . . . . . . . Searches Triggered 1 | . . . . . . . . . . . . . 1 . Construction Impeded 2 | . . . . . . . 1 . 1 . . . . . Haulers Reinforced 1 | . . . . . . . . . 1 . . . . . Active Scanning Responses . | . . . . . . . . . . . . . . . Cargo Convoy Interrupts 1 | . . . . . . . . . . . 1 . . . Stealth | -11 -10 -10 -10 -9 -8 -8 -8 -8 -7 -7 -6 -6 -5 -5 --------- Run | Jun Mat Min Exi Min Mat Gar Mat Gar Fac Gar Fac Gar Fac Gar Distress Signals 5 | . . . . . 2 1 1 . 1 . . . . . Communications Jammed . | . . . . . . . . . . . . . . . Distress Signals . | . . . . . . . . . . . . . . . Times Spotted 253 | . 4 . . 7 6 41 14 22 32 29 30 11 22 35 Peak Tracking Total 25 | . 2 . . 3 3 10 4 5 6 4 6 6 10 25 Tactical Retreats 33 | . . . . . 1 5 3 9 2 1 2 3 4 3 Traps | -11 -10 -10 -10 -9 -8 -8 -8 -8 -7 -7 -6 -6 -5 -5 ------- Run | Jun Mat Min Exi Min Mat Gar Mat Gar Fac Gar Fac Gar Fac Gar Traps Triggered 31 | . . . . . . 3 . 4 3 17 . 1 . 3 Indirectly 1 | . . . . . . 1 . . . . . . . . Trap Hack Attempts . | . . . . . . . . . . . . . . . Triggered . | . . . . . . . . . . . . . . . Disarmed . | . . . . . . . . . . . . . . . Reprogrammed . | . . . . . . . . . . . . . . . Reused . | . . . . . . . . . . . . . . . Traps Extracted . | . . . . . . . . . . . . . . . Installed . | . . . . . . . . . . . . . . . Triggered 3 | . . . . . . . . . 2 . 1 . . . Machines | -11 -10 -10 -10 -9 -8 -8 -8 -8 -7 -7 -6 -6 -5 -5 ---------- Run | Jun Mat Min Exi Min Mat Gar Mat Gar Fac Gar Fac Gar Fac Gar Machines Disabled 20 | . . . . . . 10 1 1 1 4 . 1 . 2 Max in Single Turn 2 | . . . . . . 2 . 1 1 1 . 1 . 1 Garrison Access 1 | . . . . . . . . . 1 . . . . . Garrison Relay 12 | . . . . . . 4 . 2 . 4 . 1 . 1 Phase Generator 1 | . . . . . . 1 . . . . . . . . Machines Repaired . | . . . . . . . . . . . . . . . Machines Sabotaged . | . . . . . . . . . . . . . . . Overloaded Fab Kills . | . . . . . . . . . . . . . . . Hacking | -11 -10 -10 -10 -9 -8 -8 -8 -8 -7 -7 -6 -6 -5 -5 --------- Run | Jun Mat Min Exi Min Mat Gar Mat Gar Fac Gar Fac Gar Fac Gar Machines Accessed 47 | . 2 . . . 3 4 7 1 9 3 6 . 10 2 Terminals 39 | . 2 . . . 2 4 6 1 7 3 4 . 8 2 Fabricators 2 | . . . . . . . . . 1 . . . 1 . Repair Stations 1 | . . . . . . . . . . . 1 . . . Recycling Units . | . . . . . . . . . . . . . . . Scanalyzers . | . . . . . . . . . . . . . . . Garrison Access 5 | . . . . . 1 . 1 . 1 . 1 . 1 . Total Hacks 124 | . 6 . . . 9 6 21 2 29 6 15 . 26 4 Successful 58 | . 3 . . . 3 4 13 1 15 1 6 . 10 2 Failed 66 | . 3 . . . 6 2 8 1 14 5 9 . 16 2 Catastrophic 20 | . 1 . . . 1 1 2 . 4 3 2 . 5 1 Database Lockouts . | . . . . . . . . . . . . . . . Manual 58 | . 5 . . . 7 . 11 . 12 . 5 . 18 . Terminals 106 | . 6 . . . 7 6 20 2 23 6 10 . 22 4 Fabricators 7 | . . . . . . . . . 4 . . . 3 . Repair Stations 3 | . . . . . . . . . . . 3 . . . Recycling Units . | . . . . . . . . . . . . . . . Scanalyzers . | . . . . . . . . . . . . . . . Garrison Access 8 | . . . . . 2 . 1 . 2 . 2 . 1 . Terminal Hacks 30 | . 1 . . . . 4 8 1 8 1 2 . 3 2 Open Door 2 | . . . . . . 1 . . . 1 . . . . Open DSF 1 | . . . . . . . . . . . . . 1 . Emergency Access Points 4 | . . . . . . 1 . 1 1 . . . . 1 Terminal Index 3 | . . . . . . . . . 1 . 1 . 1 . Alert Level 4 | . . . . . . . 2 . 2 . . . . . Unreport Threat 3 | . . . . . . . 2 . 1 . . . . . Locate Traps 4 | . . . . . . . 1 . 2 . 1 . . . Zone Layout 6 | . 1 . . . . . 3 . 1 . . . 1 . Garrison Registry 1 | . . . . . . 1 . . . . . . . . Security Stations 2 | . . . . . . 1 . . . . . . . 1 Fabricator Hacks 2 | . . . . . . . . . 1 . . . 1 . Network Status 2 | . . . . . . . . . 1 . . . 1 . Repair Station Hacks 1 | . . . . . . . . . . . 1 . . . Scan Component 1 | . . . . . . . . . . . 1 . . . Recycling Unit Hacks . | . . . . . . . . . . . . . . . Scanalyzer . | . . . . . . . . . . . . . . . Garrison Access Hacks 7 | . . . . . 1 . 1 . 2 . 2 . 1 . Unlock Access 5 | . . . . . 1 . 1 . 1 . 1 . 1 . Coupler Status 2 | . . . . . . . . . 1 . 1 . . . Unauthorized Hacks 18 | . 2 . . . 2 . 4 . 4 . 1 . 5 . Terminals 17 | . 2 . . . 2 . 4 . 3 . 1 . 5 . Track 1 | . . . . . . . . . 1 . . . . . Assimilate 1 | . . . . . . . . . . . . . 1 . Botnet 7 | . 1 . . . 1 . 3 . . . . . 2 . Detonate 1 | . . . . . . . . . . . . . 1 . Operators 7 | . 1 . . . 1 . 1 . 2 . 1 . 1 . Fabricators 1 | . . . . . . . . . 1 . . . . . Report 1 | . . . . . . . . . 1 . . . . . Repair Stations . | . . . . . . . . . . . . . . . Recycling Units . | . . . . . . . . . . . . . . . Scanalyzers . | . . . . . . . . . . . . . . . Garrison Access . | . . . . . . . . . . . . . . . Data Cores Recovered . | . . . . . . . . . . . . . . . Used . | . . . . . . . . . . . . . . . Hacking Detections 44 | . 2 . . . 3 3 7 1 8 3 6 . 9 2 Full Trace Events 6 | . . . . . . . . . . 3 . . 3 . Feedback Events . | . . . . . . . . . . . . . . . Feedback Blocked . | . . . . . . . . . . . . . . . Robot Schematics Acquired . | . . . . . . . . . . . . . . . Robots Built . | . . . . . . . . . . . . . . . Authchips . | . . . . . . . . . . . . . . . Time . | . . . . . . . . . . . . . . . Total Robot Build Rating . | . . . . . . . . . . . . . . . Part Schematics Acquired . | . . . . . . . . . . . . . . . Parts Built . | . . . . . . . . . . . . . . . Authchips . | . . . . . . . . . . . . . . . Time . | . . . . . . . . . . . . . . . Total Part Build Rating . | . . . . . . . . . . . . . . . Parts Repaired . | . . . . . . . . . . . . . . . Time . | . . . . . . . . . . . . . . . Parts Recycled . | . . . . . . . . . . . . . . . Recycled Matter . | . . . . . . . . . . . . . . . Retrieved Matter . | . . . . . . . . . . . . . . . Retrieved Components . | . . . . . . . . . . . . . . . Parts Scanalyzed . | . . . . . . . . . . . . . . . Part Schematics Acquired . | . . . . . . . . . . . . . . . Parts Damaged . | . . . . . . . . . . . . . . . Bothacking | -11 -10 -10 -10 -9 -8 -8 -8 -8 -7 -7 -6 -6 -5 -5 ------------ Run | Jun Mat Min Exi Min Mat Gar Mat Gar Fac Gar Fac Gar Fac Gar Used RIF Installer 6 | . . . . . . 1 . 1 . 1 . 2 . 1 Coupler Efficiency 1 | . . . . . . . . 1 . . . . . . Zone Cloak 1 | . . . . . . . . . . . . 1 . . Watcher Feeds 1 | . . . . . . . . . . . . 1 . . Structural Interface 1 | . . . . . . . . . . 1 . . . . Autoassimilate 1 | . . . . . . . . . . . . . . 1 Robots Hacked 30 | . . . . . . 3 . . 4 2 12 4 1 4 Non-combat 7 | . . . . . . . . . 2 . 4 . 1 . Combat 23 | . . . . . . 3 . . 2 2 8 4 . 4 Autoassimilated 2 | . . . . . . . . . . . . . . 2 Robot Hacks Applied 30 | . . . . . . 3 . . 4 2 14 4 1 2 parse_system 1 | . . . . . . . . . . . 1 . . . drop_inventory 3 | . . . . . . . . . . . 2 . 1 . locate_stockpiles 1 | . . . . . . . . . . . 1 . . . purge_threat 1 | . . . . . . . . . . . 1 . . . overload_power 2 | . . . . . . . . . . . 2 . . . amplify_resonance 3 | . . . . . . 2 . . 1 . . . . . overwrite_iff 1 | . . . . . . . . . 1 . . . . . formatsys_high 18 | . . . . . . 1 . . 2 2 7 4 . 2 Relay Couplers Released 41 | . . . . . . 14 . 7 . 14 . 3 . 3 Machine Destruction 41 | . . . . . . 14 . 7 . 14 . 3 . 3 Attached 16 | . . . . . . 2 . . 2 2 6 3 . 1 Fabnet Peak Effective % . | . . . . . . . . . . . . . . . Robots Rewired . | . . . . . . . . . . . . . . . Allies Hacked 1 | . . . . . . . . . . 1 . . . . Hacks Repelled . | . . . . . . . . . . . . . . . Allies | -11 -10 -10 -10 -9 -8 -8 -8 -8 -7 -7 -6 -6 -5 -5 -------- Run | Jun Mat Min Exi Min Mat Gar Mat Gar Fac Gar Fac Gar Fac Gar Total Allies 30 | . . . . 5 . 3 . . 3 3 7 4 1 4 Largest Group 5 | . . . . 5 3 3 3 . 2 1 3 2 . 1 Highest-Rated Group 105 | . . . . 90 55 73 72 . 38 31 105 58 . 85 Highest-Rated Ally 85 | . . . . 31 31 39 39 . 19 31 47 32 . 85 Total Orders 7 | . . . . . 1 . 1 . 1 . 3 1 . . ROAM 7 | . . . . . 1 . 1 . 1 . 3 1 . . Ally Attacks 154 | . . . . 28 17 14 29 . 5 7 25 13 . 16 Total Damage 2631 | . . . . 236 180 268 419 . 49 140 599 276 . 464 Kills 22 | . . . . 4 1 3 3 . 1 3 4 . . 3 Allies Corrupted . | . . . . . . . . . . . . . . . Allies Melted 3 | . . . . . . . 1 . . . . 1 . 1 Intel | -11 -10 -10 -10 -9 -8 -8 -8 -8 -7 -7 -6 -6 -5 -5 ------- Run | Jun Mat Min Exi Min Mat Gar Mat Gar Fac Gar Fac Gar Fac Gar Robot Analysis Total . | . . . . . . . . . . . . . . . Derelict Logs Recovered 3 | . . 1 . 2 . . . . . . . . . . Drone Launches . | . . . . . . . . . . . . . . . Drone Recoveries . | . . . . . . . . . . . . . . . Exploration | -11 -10 -10 -10 -9 -8 -8 -8 -8 -7 -7 -6 -6 -5 -5 ------------- Run | Jun Mat Min Exi Min Mat Gar Mat Gar Fac Gar Fac Gar Fac Gar Turns Passed 13291 | 77 145 105 985 908 384 2161 451 981 1761 3013 1261 255 391 413 Spaces Moved 9248 | 44 78 98 1087 653 279 1591 297 670 1490 1052 568 219 666 456 Core 658 | 3 . . . . . 24 . . 171 . 18 219 69 154 Treads 1484 | . . . . . 7 19 . . 140 959 359 . . . Legs 2781 | . . . . . . 645 297 670 816 93 191 . . 69 Wheels 3132 | 41 78 98 1087 653 272 903 . . . . . . . . Hover 61 | . . . . . . . . . . . . . 61 . Flight 1132 | . . . . . . . . . 363 . . . 536 233 Fastest Speed 31 | 50 90 90 90 80 90 90 120 120 35 160 50 50 31 31 Average Speed 113 | 86 90 90 90 85 93 108 120 120 96 234 187 78 36 51 Slowest Speed 470 | 95 100 90 90 95 240 400 120 190 250 260 470 150 115 190 Overloaded Moves . | . . . . . . . . . . . . . . . Propulsion Burnouts . | . . . . . . . . . . . . . . . Robots Hopped 1 | . . . . . . . . . . . . . 1 . Cave-ins Triggered . | . . . . . . . . . . . . . . . Exploration Rate (%) 48 | 3 24 29 93 97 25 99 34 61 32 99 19 33 28 49 Regions Visited 14 Branch Regions 3 Pre-discovered Areas 1 | . . . . 1 . . . . . . . . . . Known Exits Taken 5 | . . . . . 1 . 1 . 1 . 1 . 1 . Unknown Exits Taken 5 | 1 1 1 1 1 . . . . . . . . . . Scrap Searched 2 | . . 1 . 1 . . . . . . . . . . Spaces Dug 6 | . . . . . . . . . 3 . 1 . 2 . Terrain Destroyed 213 | . . . . . . 164 . . 3 42 1 . 2 1 Melee 6 | . . . . . . . . . 3 . 1 . 2 . Projectile 2 | . . . . . . 1 . . . 1 . . . . AOE 204 | . . . . . . 163 . . . 41 . . . . Terrain Rammed . | . . . . . . . . . . . . . . . Walls Destroyed . | . . . . . . . . . . . . . . . Machines Disabled . | . . . . . . . . . . . . . . . Actions | -11 -10 -10 -10 -9 -8 -8 -8 -8 -7 -7 -6 -6 -5 -5 --------- Run | Jun Mat Min Exi Min Mat Gar Mat Gar Fac Gar Fac Gar Fac Gar Total 11162 | 64 113 114 1094 964 377 1857 356 787 1689 1366 708 287 796 590 Wait 834 | . 13 17 6 280 60 73 19 37 42 58 36 41 95 57 Move 9236 | 43 77 97 1086 652 279 1590 297 669 1489 1051 568 218 664 456 Hop 1 | . . . . . . . . . . . . . 1 . Pick Up 80 | 7 2 . 1 2 5 14 1 2 11 23 8 1 1 2 Fast Attach 127 | 6 1 . . 1 5 19 2 3 34 17 13 2 16 8 Attach 50 | . 1 . . . 3 8 . 1 7 10 9 4 1 6 Detach 15 | . . . . . . 1 . . 2 2 5 2 2 1 Swap 26 | . . . . 4 4 5 . 1 2 2 4 . . 4 Drop 101 | . . . 1 6 9 17 2 3 26 11 11 . 6 9 Fire 520 | 8 19 . . 19 12 115 35 58 20 162 41 17 7 7 Melee 92 | . . . . . . . . . 56 . 10 . 3 23 Ram . | . . . . . . . . . . . . . . . Kick . | . . . . . . . . . . . . . . . Crush . | . . . . . . . . . . . . . . . Escape Stasis 75 | . . . . . . 15 . 13 . 30 . . . 17 Rewire 5 | . . . . . . . . . . . 3 2 . . Trap . | . . . . . . . . . . . . . . . Miscellaneous . | . . . . . . . . . . . . . . . Route ------- -11/Junkyard -10/Materials -10/Mines -10/Exiles (discovered 2 exits: [*Min x2]) -9/Mines (discovered 2 exits: *Mat x2) -8/Materials (discovered 2 exits: *Sto / Gar) -8/Garrison (discovered 3 exits: *Mat x3) -8/Materials (discovered 3 exits: *Fac x2 / Gar) -8/Garrison (discovered 2 exits: *Fac x2) -7/Factory -7/Garrison (discovered 3 exits: *Fac x3) -6/Factory (discovered 2 exits: [*Low] / Gar) -6/Garrison -5/Factory (discovered 2 exits: [*Fac] / Gar) -5/Garrison (discovered 2 exits: [*Fac x2]) History --------- Turn | Location | Event 2 | -11/Junkyard | Met Revision 17 29 | -11/Junkyard | Discovered new exit (range 15) 78 | -11/Junkyard | Entered Materials 196 | -10/Materials | Discovered new exit (range 16) 199 | -10/Materials | Met 8R-AWN 223 | -10/Materials | Entered Mines 224 | -10/Mines | Followed 8R-AWN into the Mines 303 | -10/Mines | Learned Materials stockpile data 317 | -10/Mines | Build established: Mutant 319 | -10/Mines | Discovered new exit (range 5) 328 | -10/Mines | Entered Exiles 351 | -10/Exiles | Welcomed by 8R-AWN 365 | -10/Exiles | Met EX-HEX 399 | -10/Exiles | Met EX-BIN 543 | -10/Exiles | Met EX-DEC 559 | -10/Exiles | Visited The Gauntlet 753 | -10/Exiles | Discovered new exit (range 14) 866 | -10/Exiles | Learned about 8R-AWN's background 886 | -10/Exiles | Discovered new exit (range 15) 1313 | -10/Exiles | Entered Mines 1331 | -9/Mines | Assembled infested the area 1336 | -9/Mines | Assisted by a Guerilla fighting off Assembled 1539 | -9/Mines | Discovered new exit (range 5) 1579 | -9/Mines | Received a Rocket Launcher from a helpful Derelict 1637 | -9/Mines | Discovered new exit (range 15) 1652 | -9/Mines | Assisted by bots powering up and referring to "LRC-V3" 1666 | -9/Mines | Learned location of Recycling (-8) 1701 | -9/Mines | Core integrity fell below 50% 1782 | -9/Mines | Learned 4 Materials zone layouts 2221 | -9/Mines | Entered Materials 2221 | -8/Materials | Accompanied by 3 allies 2221 | -8/Materials | Evolved 4 slots: Propulsion x2, Utility x2 2222 | -8/Materials | Discovered new exit (range 15) 2222 | -8/Materials | Identified exit to Storage 2226 | -8/Materials | Led the pair of lost Derelicts to an unsafe place 2605 | -8/Materials | Identified exit to Garrison 2605 | -8/Materials | Entered Garrison 2651 | -8/Garrison | Learned Materials security intel 2684 | -8/Garrison | Phase Generator disabled 2730 | -8/Garrison | Triggered checkpoint 3010 | -8/Garrison | Lost 4 parts (1p1n1u1w) 3106 | -8/Garrison | Installed Relay Interface Framework 3114 | -8/Garrison | Discovered new exit (range 10) 3192 | -8/Garrison | Triggered checkpoint 3212 | -8/Garrison | Garrison Relay disabled 3287 | -8/Garrison | Lost 3 parts (2n1w) 3317 | -8/Garrison | Triggered checkpoint 3357 | -8/Garrison | Lost 4 parts (2u2w) 3401 | -8/Garrison | Discovered new exit (range 14) 3530 | -8/Garrison | Triggered checkpoint 3601 | -8/Garrison | Discovered new exit (range 13) 3716 | -8/Garrison | Triggered checkpoint 3880 | -8/Garrison | Garrison Relay disabled 4101 | -8/Garrison | Build established: Scavenger-Mutant 4112 | -8/Garrison | Garrison Relay disabled 4408 | -8/Garrison | Discovered new exit (range 76) 4408 | -8/Garrison | Discovered new exit (range 52) 4408 | -8/Garrison | Discovered new exit (range 22) 4418 | -8/Garrison | Garrison Relay disabled 4420 | -8/Garrison | Triggered checkpoint 4661 | -8/Garrison | Triggered checkpoint 4694 | -8/Garrison | Rescued a captive Derelict 4695 | -8/Garrison | Rescued a captive Derelict 4766 | -8/Garrison | Entered Materials 4766 | -8/Materials | Accompanied by 3 allies 5039 | -8/Materials | Discovered new exit (range 14) 5170 | -8/Materials | Discovered new exit (range 16) 5217 | -8/Materials | Identified exit to Garrison 5217 | -8/Materials | Entered Garrison 5314 | -8/Garrison | Triggered checkpoint 5438 | -8/Garrison | Core integrity fell below 50% 5453 | -8/Garrison | Triggered checkpoint 5816 | -8/Garrison | Garrison Relay disabled 5884 | -8/Garrison | Triggered checkpoint 5979 | -8/Garrison | Discovered new exit (range 13) 6022 | -8/Garrison | Expanded RIF knowledge: Coupler Efficiency 6154 | -8/Garrison | Triggered checkpoint 6154 | -8/Garrison | Garrison Relay disabled 6180 | -8/Garrison | Triggered checkpoint 6185 | -8/Garrison | Discovered new exit (range 10) 6198 | -8/Garrison | Entered Factory 6198 | -7/Factory | Evolved 2 slots: Utility x2 6223 | -7/Factory | Lost 3 parts (2n1u) 6492 | -7/Factory | Build established: Mutant 6704 | -7/Factory | Garrison activated, responded to threat 7799 | -7/Factory | Garrison activated, responded to threat 7821 | -7/Factory | Lost 3 parts (1p1u1w) 7915 | -7/Factory | System corruption reached 10% 7929 | -7/Factory | Core integrity fell below 50% 7950 | -7/Factory | Identified exit to Garrison 7953 | -7/Factory | Lost 5 parts (2n2u1w) 7959 | -7/Factory | Entered Garrison 7980 | -7/Garrison | Expanded RIF knowledge: Structural Interface 8212 | -7/Garrison | Build established: Scavenger-Mutant 8348 | -7/Garrison | Triggered checkpoint 8496 | -7/Garrison | Triggered checkpoint 8626 | -7/Garrison | Triggered checkpoint 8629 | -7/Garrison | Triggered checkpoint 8753 | -7/Garrison | Core integrity fell below 20% 8878 | -7/Garrison | Discovered new exit (range 10) 9024 | -7/Garrison | Triggered checkpoint 9072 | -7/Garrison | Lost 5 parts (2n2u1w) 9154 | -7/Garrison | Rescued a captive Derelict 9338 | -7/Garrison | Build established: Hauler-Mutant 9459 | -7/Garrison | Discovered new exit (range 10) 9723 | -7/Garrison | Garrison Relay disabled 9928 | -7/Garrison | Discovered new exit (range 3) 10130 | -7/Garrison | Triggered checkpoint 10252 | -7/Garrison | Garrison Relay disabled 10314 | -7/Garrison | Build established: Bothacker-Mutant 10534 | -7/Garrison | Garrison Relay disabled 10743 | -7/Garrison | Garrison Relay disabled 10972 | -7/Garrison | Entered Factory 10972 | -6/Factory | Accompanied by 1 ally 10972 | -6/Factory | Evolved 2 slots: Power x1, Propulsion x1 11762 | -6/Factory | Garrison activated, responded to threat 11956 | -6/Factory | Cargo convoy interrupted 12022 | -6/Factory | First assault squad dispatched 12102 | -6/Factory | Discovered new exit (range 15) 12156 | -6/Factory | Lost 3 parts (2n1u) 12215 | -6/Factory | Released all parts (9) 12229 | -6/Factory | Core integrity fell below 50% 12233 | -6/Factory | Identified exit to Garrison 12233 | -6/Factory | Entered Garrison 12251 | -6/Garrison | Expanded RIF knowledge: Watcher Feeds 12292 | -6/Garrison | Triggered checkpoint 12330 | -6/Garrison | Garrison Relay disabled 12458 | -6/Garrison | Triggered checkpoint 12475 | -6/Garrison | Discovered new exit (range 10) 12480 | -6/Garrison | Expanded RIF knowledge: Zone Cloak 12488 | -6/Garrison | Entered Factory 12488 | -5/Factory | Evolved 2 slots: Propulsion x1, Utility x1 12746 | -5/Factory | Discovered new exit (range 6) 12788 | -5/Factory | Search patrols dispatched 12878 | -5/Factory | Identified exit to Garrison 12879 | -5/Factory | Entered Garrison 12922 | -5/Garrison | Triggered checkpoint 12938 | -5/Garrison | Garrison Relay disabled 12960 | -5/Garrison | Triggered checkpoint 12966 | -5/Garrison | Lost 3 parts (1p1n1u) 13009 | -5/Garrison | Discovered new exit (range 3) 13163 | -5/Garrison | Spotted B-75 Beast 13166 | -5/Garrison | Triggered checkpoint 13171 | -5/Garrison | Triggered checkpoint 13182 | -5/Garrison | Assimilated Beast 6a with formatsys_high 13188 | -5/Garrison | Triggered checkpoint 13219 | -5/Garrison | Lost 6 parts (1p4n1w) 13219 | -5/Garrison | Core integrity fell below 50% 13219 | -5/Garrison | Discovered new exit (range 13) 13224 | -5/Garrison | Learned Factory security intel 13241 | -5/Garrison | Triggered checkpoint 13258 | -5/Garrison | Expanded RIF knowledge: Autoassimilate 13289 | -5/Garrison | Core integrity fell below 20% 13292 | -5/Garrison | Destroyed by G-50 Soldier with Heavy Laser Last Messages --------------- 13273_ Slug penetrates RIF Installer. 13273_ HV Slug penetrates Wall. 13276_ Penetrated by Slug. 13277_ HV Slug penetrates Wall. 13279_ Penetrated by Slug. 13279_ Adv. Heat Sink destroyed. 13281_ HV Slug penetrates Wall. 13282_ Penetrated by Slug. 13282_ Slug penetrates RIF Installer. 13282_ Hyp. Gauss Rifle destroyed. 13283_ Wall collapses. 13284_ Penetrated by Slug. 13286_ Slug penetrates RIF Installer. 13288_ Penetrated by Slug. 13291_ Slug penetrates RIF Installer. 13291_ Penetrated by Slug. 13291_ Relay Coupler [Behemoth] destroyed. 13292_ RIF automatically installing new Sentinel 6b system data, ETC: 6. 13292_ Penetrated by Slug. 13292_ Relay Coupler [Sentry] destroyed. Map ----- +----------------------------------------------------+ | | | | | | | | | | | | | ???????????????????????????????????????? | | ???????????????????????????????????????? | | ???????????????????????????????????????? | | ???????????????????????????????????????? | | ???????????????????????????????????????? | | ???????????????????????????????????????? | | ???????????????????????????????????????? | | ???????????????????????????????????????? | | ???????????????????????????????????????? | | ???????????????????????????????????????? | | ???????????????????????????????????????? | | ???????????????????????????????????????? | | ???????????????????????????????????????? | | ???????????????????????????????????????? | | ?????????????????????????????????????+?? | | ???????????????????????????????????????# | | ?????????????#######???????######???#+#" | | ?????????????# "h" #########||||##### " | | ?????????????#"ggglghggg gY " | | ?????????????#"@lhh;########!!!!##### " | | ?????????????########??????######???# #" | | ????????????????????????????????????# #? | | ????????????????????????????????????# #? | | ????????????????????????????????????# #? | | ????????????????????????????????????# #? | | ??????????????????????????????????### #? | | ????????????????????????####??##### #? | | ????????????????????????#""#??# + #? | | ????????????????????????#T #??# ### #? | | ????????????????????????#" #??# #?### #? | | ??????????????????#####?## #??# #???# #? | | ??????????????????# #??# #??#+##### #? | | ??????????????????# < #### #### +? | | ??????????????????# ######? | | ??????????????????# #?????? | | ??????????????????########+#### ##????? | | ?????????????????????????# #??# T#????? | | ?????######???????????#### #### ####### | | ?????# ##?????????# / + # | | ?????# #??######## ####### ##### # | | ?????# # #### #????# #???# # | | ????????# #????# #???# # | | ????????######## #????# #???# # | | ???????????????# " #????# #####+# | +----------------------------------------------------+ Best States ------------- Heat Dissipation 67 Energy Generation 32 Energy Capacity 990 Matter Stores 300 Matter Capacity 300 Sight Range 16 Terrain Scan Density 10 ECM Strength 2 Jamming Range 14 Additional Mass Support 12 Armor Coverage 525 Resistance: KI 30 Core Shielding 20 Utility Shielding 66 Evasion (%) 73 Targeting Accuracy 5 Melee Accuracy 6 Target Analysis 5 Recoil Reduction 4 Offensive Hacking 14 Relay Coupler Types 4 Relay Coupler Value 155 Item Schematics ----------------- None Robot Schematics ------------------ None Fabricated ------------ Nothing Alien Tech Used ----------------- None Achievements -------------- Party Time Challenges ------------ None Game ------ Seed HypercooledMobileHammer Manual? 0 Play Time 02:27:29 Cumulative 28.6 hours Start 2024.02.13 @ 00:28:59 End 2024.02.13 @ 02:58:55 Sessions 1 Manual Loads 0 Difficulty Rogue Special Mode None Game No. 30 Rogue 30 Adventurer 0 Explorer 0 Win Type - Total 0 Types 0/0/0/0/0/0/0/0/0 Lore% 34 Gallery% 37 Achievement% 38 Wizard Run 0 Options --------- ASCII 0 Keyboard 0 Movement Mouse Keybinds 0 Fullscreen 1 Font 18/SmallcapsGlow Map View 76x50 Tactical HUD 1 Map Filters NONE Filters NONE Steam 0 RUN: be894a84-b68c-497c-aedc-7d4c0624126c